bitfinex/quotes_SOLUSD_20250829
["timestamp","ask_amount","ask_price","bid_price","bid_amount"]
[1756472080957,18.65287815,212.37,212.31,18.65287815]
[1756472081153,18.65287815,212.38,212.29,26.69]
[1756472081375,19.34287815,212.39,212.33,18.65287815]
[1756472081573,19.34287815,212.39,212.29,26.69]
[1756472081789,4.70719777,212.45,212.38,18.65287815]
[1756472082087,14.28559401,212.49,212.38,18.65287815]
[1756472082088,46.22675518,212.47,212.42,18.65287815]
[1756472082286,19.34287815,212.46,212.4,18.65287815]
[1756472082684,0.69,212.46,212.4,18.65287815]
[1756472082987,0.69,212.46,212.41,18.65287815]
[1756472083162,0.69,212.45,212.41,18.65287815]
[1756472083360,5.39717981,212.45,212.41,18.65287815]
[1756472083686,46.22662915,212.47,212.43,18.65287815]
[1756472083854,46.22662915,212.47,212.44,18.65287815]
[1756472084054,46.22662915,212.47,212.43,18.65287815]
[1756472084679,41.52,212.47,212.44,18.65287815]
[1756472084853,4.7065788,212.47,212.43,18.65287815]
[1756472085188,5.3965788,212.47,212.43,18.65287815]
[1756472085762,5.3965788,212.47,212.42,18.65287815]
[1756472085984,4.7065788,212.47,212.44,18.65287815]
[1756472086880,4.7065788,212.47,212.43,18.65287815]
[1756472087099,0.69,212.47,212.39,5.39831167]
[1756472087383,0.69,212.47,212.43,18.65287815]
[1756472087572,4.70610381,212.49,212.43,18.65287815]
[1756472088391,0.06,212.51,212.47,18.65287815]
[1756472089083,0.06,212.51,212.48,18.65287815]
[1756472089281,0.06,212.51,212.47,18.65287815]
[1756472089454,0.75,212.51,212.46,18.65287815]
[1756472089787,0.75,212.51,212.44,0.69]
[1756472089991,0.75,212.51,212.46,18.65287815]
[1756472090179,0.75,212.51,212.45,18.65287815]
[1756472090754,0.75,212.51,212.46,18.65287815]
[1756472091090,0.06,212.51,212.46,18.65287815]
[1756472091267,0.06,212.51,212.48,18.65287815]
[1756472091465,0.06,212.51,212.47,18.65287815]
[1756472091669,0.06,212.51,212.44,0.69]
[1756472091866,0.06,212.51,212.18,9.61033211]
[1756472091867,18.65287815,212.48,212.39,0.69]
[1756472092197,18.65287815,212.43,212.37,18.65287815]
[1756472092701,60.09287815,212.43,212.36,18.65287815]
[1756472092903,18.65287815,212.41,212.34,0.69]
[1756472093197,18.65287815,212.4,212.34,0.69]
[1756472093370,4.7083196,212.39,212.34,18.65287815]
[1756472093687,4.7083196,212.39,212.34,19.34287815]
[1756472093888,5.3983196,212.39,212.34,18.65287815]
[1756472094069,23.36096237,212.41,212.35,18.65287815]
[1756472094259,46.14764721,212.43,212.37,18.65287815]
[1756472094465,46.14764721,212.43,212.39,18.65287815]
[1756472094664,46.14764721,212.43,212.38,18.65287815]
[1756472095166,46.14764721,212.43,212.37,18.65287815]
[1756472095382,46.14764721,212.43,212.38,18.65287815]
[1756472095584,46.14764721,212.43,212.37,18.65287815]
[1756472095873,46.14764721,212.43,212.33,26.0]
[1756472095874,18.65287815,212.41,212.35,18.65287815]
[1756472096079,46.83764721,212.43,212.35,18.65287815]
[1756472096282,65.49052536,212.43,212.36,18.65287815]
[1756472096587,65.49052536,212.43,212.28,11.77686661]
[1756472096588,18.65287815,212.4,212.34,18.65287815]
[1756472096886,18.65287815,212.41,212.35,18.65287815]
[1756472097387,64.80052536,212.43,212.37,18.65287815]
[1756472097576,46.14764721,212.43,212.37,18.65287815]
[1756472097979,64.80052536,212.43,212.36,18.68287815]
[1756472098185,18.65287815,212.41,212.36,0.03]
[1756472098400,19.34287815,212.42,212.36,18.68287815]
[1756472098695,19.34287815,212.42,212.36,0.03]
[1756472099102,64.80052536,212.43,212.37,18.65287815]
[1756472099317,46.14764721,212.43,212.38,18.65287815]
[1756472099613,0.69,212.42,212.37,18.65287815]
[1756472099902,5.39772447,212.42,212.37,18.65287815]
[1756472100108,4.70772447,212.42,212.37,18.65287815]
[1756472100407,18.65287815,212.4,212.36,0.03]
[1756472100923,19.32287815,212.4,212.36,0.03]
[1756472101083,18.65287815,212.37,212.36,0.03]
[1756472101424,32.24847216,212.37,212.36,0.03]
[1756472101597,32.91847216,212.37,212.36,0.03]
[1756472101785,37.62723516,212.37,212.36,0.03]
[1756472101983,26.0,212.34,212.33,0.03]
[1756472102185,99.62847216,212.34,212.33,0.03]
[1756472102390,100.29847216,212.34,212.33,0.03]
[1756472102595,13.59559401,212.29,212.21,0.03]
[1756472102902,18.65287815,212.25,212.21,0.03]
[1756472103281,13.59559401,212.27,212.21,0.03]
[1756472103478,32.24847216,212.27,212.21,0.03]
[1756472103898,18.65287815,212.26,212.21,0.03]
[1756472104719,19.32287815,212.26,212.21,0.03]
[1756472105302,23.36419981,212.26,212.21,0.7]
[1756472105500,41.38,212.28,212.21,18.68287815]
[1756472105702,41.36,212.27,212.22,19.32287815]
[1756472106507,23.36344334,212.29,212.23,19.32287815]
[1756472106813,18.65287815,212.3,212.24,18.65287815]
[1756472107004,13.59559401,212.34,212.29,18.65287815]
[1756472107210,41.34,212.33,212.3,18.65287815]
[1756472107387,41.34,212.33,212.29,0.67]
[1756472107584,41.34,212.33,212.32,18.65287815]
[1756472107790,0.67,212.41,212.32,19.32287815]
[1756472108085,41.34,212.41,212.38,18.65287815]
[1756472108491,0.67,212.45,212.4,18.65287815]
[1756472108707,5.37702135,212.45,212.4,18.65287815]
[1756472108909,19.32287815,212.49,212.42,18.65287815]
[1756472109213,41.34,212.46,212.41,18.65287815]
[1756472109504,41.34,212.46,212.42,18.65287815]
[1756472109804,41.34,212.46,212.43,18.65287815]
[1756472111304,41.34,212.46,212.43,28.56719268]
[1756472111901,0.67,212.45,212.37,5.378763]
[1756472112205,41.34,212.46,212.38,26.67]
[1756472112401,46.04678402,212.46,212.42,28.56719268]
[1756472113305,41.34,212.46,212.42,28.56719268]
[1756472114719,46.71681361,212.46,212.38,26.67]
[1756472114895,41.34,212.46,212.43,28.56719268]
[1756472115915,41.34,212.46,212.42,28.56719268]
[1756472116100,45.98655155,212.47,212.42,28.56719268]
[1756472116300,46.65655155,212.47,212.42,28.56719268]
[1756472116714,0.06,212.46,212.42,28.56719268]
[1756472117118,0.67,212.45,212.39,29.23719268]
[1756472117300,0.67,212.45,212.39,28.56719268]
[1756472117495,0.67,212.45,212.4,28.56719268]
[1756472117914,0.67,212.45,212.41,28.56719268]
[1756472118120,5.37710405,212.45,212.4,28.56719268]
[1756472119427,0.06,212.46,212.42,28.56719268]
[1756472119616,41.26,212.45,212.42,28.56719268]
[1756472120229,41.26,212.45,212.41,29.23719268]
[1756472120538,41.93,212.45,212.38,0.67]
[1756472120739,0.67,212.44,212.4,28.56719268]
[1756472121024,41.26,212.45,212.42,28.56719268]
[1756472121404,45.96699726,212.45,212.41,28.56719268]
[1756472122341,45.96699726,212.45,212.34,11.77314403]
[1756472122544,45.96699726,212.45,211.59,48.15870528]
[1756472122545,28.56719268,212.37,212.31,28.56719268]
[1756472122709,54.56719268,212.33,212.22,4.71209122]
[1756472122903,41.89,212.32,212.23,0.67]
[1756472123243,28.56719268,212.3,212.23,0.67]
[1756472123529,28.56719268,212.31,212.25,28.56719268]
[1756472123704,28.56719268,212.36,212.29,28.56719268]
[1756472123904,41.2,212.35,212.31,28.56719268]
[1756472124139,41.2,212.35,212.33,28.56719268]
[1756472125021,41.2,212.35,212.31,0.67]
[1756472125022,41.2,212.35,212.32,28.56719268]
[1756472125238,41.2,212.35,212.34,28.56719268]
[1756472125529,41.2,212.35,212.33,28.56719268]
[1756472125906,41.2,212.35,212.31,0.67]
[1756472126225,41.2,212.35,212.34,28.56719268]
[1756472126430,26.0,212.41,212.34,29.23719268]
[1756472126731,67.2,212.41,212.37,28.56719268]
[1756472126925,0.67,212.4,212.35,28.56719268]
[1756472127434,67.2,212.41,212.37,28.56719268]
[1756472127627,0.67,212.4,212.36,28.56719268]
[1756472128232,67.2,212.41,212.35,1.0]
[1756472128233,28.56719268,212.38,212.35,1.0]
[1756472128526,4.70898474,212.36,212.35,1.0]
[1756472129012,0.67,212.36,212.35,1.0]
[1756472129212,29.23719268,212.36,212.35,1.0]
[1756472129412,68.83278669,212.36,212.35,1.0]
[1756472130348,109.99278669,212.36,212.35,1.0]
[1756472130508,114.70177143,212.36,212.35,1.0]
[1756472131910,3.92812763,212.43,212.35,30.24719268]
[1756472132129,12.44850908,212.44,212.38,28.56719268]
[1756472132317,41.16,212.43,212.4,28.56719268]
[1756472132520,41.16,212.43,212.42,28.56719268]
[1756472132715,45.86744939,212.43,212.4,28.56719268]
[1756472132922,45.86744939,212.43,212.39,28.56719268]
[1756472133115,45.86744939,212.43,212.4,28.56719268]
[1756472133316,45.86744939,212.43,212.4,18.65113351]
[1756472133515,45.86744939,212.43,212.37,0.68]
[1756472133714,45.86744939,212.43,212.39,18.65113351]
[1756472134431,45.86744939,212.43,212.4,19.33113351]
[1756472134630,45.86744939,212.43,212.4,18.65113351]
[1756472134826,18.65113351,212.41,212.35,1.0]
[1756472135016,59.79113351,212.4,212.35,1.0]
[1756472135330,18.65113351,212.39,212.35,1.0]
[1756472135532,41.14,212.4,212.35,1.0]
[1756472135726,59.79113351,212.4,212.35,1.0]
[1756472135908,0.68,212.4,212.35,1.0]
[1756472136110,26.0,212.42,212.36,0.68]
[1756472136315,41.12,212.41,212.37,18.65113351]
[1756472136511,41.12,212.41,212.35,1.0]
[1756472136709,18.65113351,212.36,212.35,1.0]
[1756472136937,41.12,212.36,212.35,1.0]
[1756472137433,26.0,212.42,212.35,20.33113351]
[1756472137626,41.12,212.41,212.36,0.68]
[1756472137809,41.12,212.41,212.37,18.65113351]
[1756472138008,41.12,212.41,212.36,19.33113351]
[1756472138221,41.12,212.41,212.37,18.65113351]
[1756472138417,41.12,212.41,212.35,19.65113351]
[1756472138738,4.70829608,212.4,212.35,19.65113351]
[1756472138924,4.70829608,212.4,212.35,20.33113351]
[1756472139118,45.82791898,212.41,212.35,19.65113351]
[1756472139325,45.82791898,212.41,212.35,20.33113351]
[1756472139639,18.65113351,212.36,212.35,1.0]
[1756472139826,59.75113351,212.36,212.35,1.0]
[1756472140328,41.1,212.36,212.35,1.0]
[1756472140846,26.0,212.34,212.33,0.03]
[1756472141026,78.73571226,212.36,212.3,0.03]
[1756472141027,58.24672752,212.31,212.3,0.03]
[1756472141333,109.32288981,212.31,212.3,0.03]
[1756472141540,109.32288981,212.31,212.21,0.03]
[1756472141541,13.59559401,212.26,212.21,0.03]
[1756472141741,28.6272958,212.24,212.21,0.03]
[1756472141930,69.7072958,212.25,212.21,0.03]
[1756472142244,13.59559401,212.26,212.22,0.68]
[1756472142430,41.08,212.26,212.23,29.3072958]
[1756472142761,39.59559401,212.22,212.21,0.03]
[1756472142915,109.30288981,212.22,212.21,0.03]
[1756472144943,114.69498103,212.22,212.21,0.03]
[1756472145244,114.01498103,212.22,212.21,0.03]
[1756472145428,114.69498103,212.22,212.21,0.03]
[1756472146041,114.01498103,212.22,212.21,0.03]
[1756472146418,114.69498103,212.22,212.21,0.03]
[1756472147772,13.59559401,212.18,212.16,0.1]
[1756472148046,42.22288981,212.14,212.13,0.1]
[1756472148256,54.65559401,212.14,212.13,0.1]
[1756472148546,69.6872958,212.14,212.13,0.1]
[1756472149357,74.401164,212.14,212.13,0.1]
[1756472149529,28.6272958,212.14,212.13,0.1]
[1756472149725,41.06,212.16,212.13,0.78]
[1756472149929,41.06,212.16,212.14,0.68]
[1756472150144,42.22288981,212.15,212.13,0.1]
[1756472150453,28.6272958,212.17,212.14,0.68]
[1756472150637,41.06,212.16,212.14,0.68]
[1756472150837,28.6272958,212.15,212.13,0.1]
[1756472151034,41.06,212.14,212.13,0.1]
[1756472151627,74.401164,212.14,212.13,0.1]
[1756472151823,26.0,212.19,212.13,0.1]
[1756472152133,41.06,212.18,212.13,0.78]
[1756472152444,42.22288981,212.14,212.13,0.1]
[1756472152642,83.28288981,212.14,212.13,0.1]
[1756472152952,54.65559401,212.14,212.13,0.1]
[1756472153142,45.7738682,212.14,212.13,0.1]
[1756472153341,87.99675801,212.14,212.13,0.1]
[1756472153533,88.67675801,212.14,212.13,0.1]
[1756472155353,60.04946221,212.14,212.13,1e-08]
[1756472155560,88.67675801,212.14,212.13,1e-08]
[1756472156464,26.0,212.02,211.95,1.891119]
[1756472156630,13.59559401,211.96,211.86,0.71]
[1756472156961,83.26288981,211.95,211.86,0.71]
[1756472157335,87.9809837,211.95,211.86,0.71]
[1756472157925,46.9409837,211.95,211.86,0.71]
[1756472158239,87.9809837,211.95,211.86,0.71]
[1756472158850,47.6209837,211.95,211.86,0.71]
[1756472159054,87.9809837,211.95,211.86,0.71]
[1756472159639,88.6609837,211.95,211.86,0.71]
[1756472159832,100.45621842,211.95,211.86,0.03]
[1756472160052,42.22288981,211.87,211.86,0.03]
[1756472160237,83.26288981,211.87,211.86,0.03]
[1756472161541,88.6627652,211.87,211.86,0.03]
[1756472162160,85.3554694,211.87,211.86,0.03]
[1756472162362,114.6627652,211.87,211.86,0.03]
[1756472162544,88.6627652,211.87,211.86,0.03]
[1756472162775,113.9827652,211.87,211.86,0.03]
[1756472163058,60.0354694,211.87,211.86,0.03]
[1756472163269,88.6627652,211.87,211.86,0.03]
[1756472163756,88.6627652,211.87,211.86,1e-08]
[1756472164750,47.6227652,211.87,211.86,1e-08]
[1756472165151,88.6627652,211.87,211.86,1e-08]
[1756472165963,13.59559401,211.87,211.86,1e-08]
[1756472166168,54.63559401,211.87,211.86,0.65000001]
[1756472166343,88.6627652,211.87,211.86,1e-08]
[1756472166860,18.3154694,211.87,211.86,1e-08]
[1756472167164,88.6627652,211.87,211.86,1e-08]
[1756472167343,39.59559401,211.84,211.82,0.1]
[1756472167551,83.26288981,211.83,211.82,1e-08]
[1756472167939,13.59559401,211.79,211.77,0.1]
[1756472168142,69.6672958,211.78,211.77,0.1]
[1756472168444,83.26288981,211.78,211.77,0.1]
[1756472169758,4.72100489,211.82,211.77,0.75]
[1756472170064,18.31627188,211.84,211.79,28.6272958]
[1756472170260,13.59559401,211.82,211.8,0.65]
[1756472170440,41.04,211.81,211.79,28.6272958]
[1756472170640,54.63559401,211.81,211.8,0.65]
[1756472171365,41.04,211.81,211.8,0.65]
[1756472171756,39.59559401,211.78,211.77,0.1]
[1756472172059,113.984771,211.78,211.77,0.1]
[1756472172263,39.59559401,211.78,211.77,0.75]
[1756472172450,85.3574752,211.78,211.77,0.75]
[1756472172638,85.3574752,211.78,211.77,0.1]
[1756472173956,41.04,211.78,211.77,0.75]
[1756472174173,59.3574752,211.78,211.77,0.75]
[1756472174949,59.3574752,211.78,211.77,0.1]
[1756472175452,13.59559401,211.77,211.7,0.65]
[1756472175650,42.22288981,211.77,211.7,0.65]
[1756472175857,42.90288981,211.77,211.76,1e-08]
[1756472176055,47.62499397,211.77,211.76,1e-08]
[1756472178484,39.59559401,211.73,211.63,0.65]
[1756472178653,13.59559401,211.65,211.6,0.65]
[1756472178855,41.04,211.64,211.61,0.65]
[1756472179075,41.04,211.64,211.62,0.65]
[1756472179454,54.63559401,211.64,211.63,0.65]
[1756472179888,41.04,211.64,211.63,0.65]
[1756472181168,41.04,211.65,211.63,29.2772958]
[1756472181371,41.04,211.65,211.64,0.65]
[1756472181590,41.04,211.65,211.58,4.82626578]
[1756472181591,13.59559401,211.64,211.61,0.65]
[1756472181794,42.22288981,211.62,211.58,0.1]
[1756472182005,28.6272958,211.6,211.58,0.1]
[1756472182302,45.76612127,211.59,211.58,0.75]
[1756472182477,45.76612127,211.59,211.58,0.1]
[1756472183172,59.36171528,211.59,211.58,0.1]
[1756472183405,26.0,211.64,211.58,0.75]
[1756472183575,42.22288981,211.61,211.58,0.75]
[1756472183773,13.59559401,211.59,211.58,0.75]
[1756472183977,41.04,211.6,211.58,0.1]
[1756472184170,18.31948271,211.69,211.59,28.6272958]
[1756472184396,28.6272958,211.63,211.58,0.1]
[1756472184597,41.04,211.62,211.59,0.65]
[1756472184779,13.59559401,211.61,211.58,0.1]
[1756472185096,42.22288981,211.59,211.58,0.1]
[1756472185583,13.59559401,211.64,211.58,0.1]
[1756472185776,39.59559401,211.59,211.58,0.1]
[1756472186073,109.26288981,211.59,211.58,0.1]
[1756472186276,26.0,211.59,211.58,0.1]
[1756472186606,52.29153515,211.82,211.58,0.1]
[1756472186607,28.6272958,211.7,211.58,29.3772958]
[1756472186789,41.04,211.69,211.63,28.6272958]
[1756472186989,41.04,211.69,211.64,0.65]
[1756472187194,0.68,211.76,211.66,28.6272958]
[1756472187383,17.86048859,211.8,211.61,26.0]
[1756472187384,41.06,211.73,211.68,28.6272958]
[1756472187584,41.06,211.73,211.69,0.65]
[1756472187786,41.06,211.73,211.7,0.65]
[1756472187987,26.0,211.7,211.58,0.75]
[1756472188301,42.22288981,211.61,211.58,0.1]
[1756472188603,39.59559401,211.59,211.58,0.1]
[1756472188806,13.59559401,211.59,211.58,0.1]
[1756472189184,42.22288981,211.59,211.58,0.1]
[1756472189382,13.59559401,211.59,211.58,0.1]
[1756472189578,28.6272958,211.67,211.58,29.3772958]
[1756472189811,13.59559401,211.65,211.59,29.2772958]
[1756472190115,13.59559401,211.65,211.6,29.2772958]
[1756472190309,59.3515747,211.68,211.61,29.2772958]
[1756472190492,41.28,211.67,211.63,28.6272958]
[1756472190684,41.28,211.67,211.64,0.68]
[1756472190886,41.28,211.67,211.65,0.68]
[1756472191700,41.28,211.67,211.62,0.68]
[1756472191898,41.28,211.66,211.63,0.68]
[1756472192194,41.28,211.66,211.64,0.68]
[1756472192506,41.26,211.7,211.65,29.3072958]
[1756472192702,41.26,211.7,211.69,28.6272958]
[1756472193006,41.26,211.7,211.69,0.68]
[1756472193413,13.59559401,211.66,211.58,0.1]
[1756472193589,13.59559401,211.62,211.58,14.308245]
[1756472193900,42.22288981,211.6,211.58,0.1]
[1756472194705,18.32171528,211.59,211.58,0.1]
[1756472194895,46.94901108,211.59,211.58,0.1]
[1756472196211,88.66901108,211.59,211.58,0.1]
[1756472197208,88.66901108,211.59,211.55,0.03]
[1756472197209,39.59559401,211.56,211.55,0.03]
[1756472197406,109.94288981,211.56,211.55,0.03]
[1756472197616,110.62288981,211.56,211.55,0.03]
[1756472197823,6.62224353,211.6,211.55,0.71]
[1756472198112,55.33559401,211.59,211.56,0.68]
[1756472198326,39.59559401,211.56,211.55,0.03]
[1756472198509,86.08238546,211.56,211.55,0.03]
[1756472198695,4.72522799,211.63,211.55,29.3372958]
[1756472199020,4.72522799,211.63,211.55,0.71]
[1756472199021,13.59559401,211.58,211.55,0.71]
[1756472199200,41.8,211.57,211.55,0.03]
[1756472199717,41.8,211.57,211.56,29.3072958]
[1756472201599,41.8,211.57,211.56,28.6272958]
[1756472201819,41.8,211.57,211.56,29.3072958]
[1756472203121,4.72545382,211.62,211.55,0.03]
[1756472203303,32.40065814,211.6,211.55,0.03]
[1756472203623,4.72521674,211.64,211.59,18.80506413]
[1756472203819,55.27559401,211.63,211.6,18.80506413]
[1756472203996,0.06,211.77,211.65,26.0]
[1756472204192,0.06,211.77,211.76,18.80506413]
[1756472204727,0.06,211.77,211.76,19.48506413]
[1756472205407,0.06,211.77,211.76,29.41916473]
[1756472206197,0.06,211.77,211.76,34.14149189]
[1756472206896,0.06,211.8,211.76,34.14149189]
[1756472207100,0.06,211.8,211.79,28.73916473]
[1756472207715,0.06,211.8,211.79,29.41916473]
[1756472208108,0.06,211.8,211.79,0.68]
[1756472208307,0.06,211.8,211.79,28.73916473]
[1756472209100,13.65559401,211.8,211.76,28.73916473]
[1756472209302,13.65559401,211.8,211.69,0.03]
[1756472209303,13.59559401,211.72,211.69,0.03]
[1756472209623,41.8,211.71,211.69,0.03]
[1756472209999,41.8,211.71,211.69,28.76916473]
[1756472210195,55.39559401,211.71,211.7,28.73916473]
[1756472210425,55.39559401,211.71,211.69,0.03]
[1756472210930,4.72366556,211.7,211.69,0.03]
[1756472213305,18.31925957,211.7,211.69,0.03]
[1756472213509,26.0,211.67,211.66,0.03]
[1756472213711,110.13475874,211.67,211.64,0.03]
[1756472213914,42.33475874,211.65,211.64,0.03]
[1756472214117,42.33475874,211.65,211.55,0.03]
[1756472214118,26.0,211.62,211.55,0.03]
[1756472214327,4.72656803,211.57,211.55,0.03]
[1756472214531,41.78,211.56,211.55,0.03]
[1756472215409,46.50679145,211.56,211.55,0.03]
[1756472218030,0.68,211.6,211.55,0.03]
[1756472218031,4.72589792,211.6,211.55,0.71]
[1756472218209,41.66,211.59,211.55,0.03]
[1756472218405,26.0,211.61,211.56,0.68]
[1756472218726,96.35916473,211.6,211.55,0.03]
[1756472218898,28.73916473,211.59,211.55,0.03]
[1756472219098,28.73916473,211.58,211.55,0.03]
[1756472219303,46.34656803,211.57,211.55,0.03]
[1756472220315,41.62,211.57,211.55,0.03]
[1756472221331,4.72679145,211.56,211.55,0.03]
[1756472221527,5.40679145,211.56,211.55,0.03]
[1756472221729,33.46595618,211.56,211.55,0.03]
[1756472222431,4.72596834,211.66,211.55,0.03]
[1756472222432,28.73916473,211.63,211.55,28.76916473]
[1756472222603,55.07559401,211.62,211.55,0.75]
[1756472222801,55.07559401,211.62,211.56,28.73916473]
[1756472223031,28.73916473,211.57,211.55,0.03]
[1756472223233,70.21916473,211.56,211.55,0.03]
[1756472223417,75.62595618,211.56,211.55,0.03]
[1756472224414,74.94595618,211.56,211.55,0.03]
[1756472224732,88.54155019,211.56,211.55,0.03]
[1756472225212,89.22155019,211.56,211.55,0.03]
[1756472225412,89.22155019,211.56,211.53,0.03]
[1756472225413,42.33475874,211.54,211.53,0.03]
[1756472225920,33.46550937,211.58,211.53,0.75]
[1756472226237,41.42,211.57,211.54,28.73916473]
[1756472226420,13.59559401,211.54,211.53,0.03]
[1756472226612,55.13559401,211.54,211.53,0.03]
[1756472227514,46.26723834,211.54,211.53,0.03]
[1756472227841,46.22723834,211.54,211.53,0.03]
[1756472228618,41.48,211.54,211.53,0.03]
[1756472228818,41.48,211.54,211.53,29.48916473]
[1756472229539,41.48,211.54,211.53,14.85302657]
[1756472229718,41.5,211.61,211.53,19.58041688]
[1756472229918,41.5,211.61,211.6,14.10302657]
[1756472230133,41.5,211.61,211.6,14.82302657]
[1756472230530,4.7238887,211.69,211.6,14.82302657]
[1756472230848,41.46,211.68,211.67,14.10302657]
[1756472231350,41.46,211.68,211.65,21.58653668]
[1756472231538,46.18411186,211.68,211.67,21.58653668]
[1756472231738,46.18411186,211.68,211.66,21.58653668]
[1756472232125,46.18411186,211.68,211.67,21.58653668]
[1756472232424,41.44,211.68,211.67,21.58653668]
[1756472232827,55.03559401,211.68,211.63,0.72]
[1756472233122,55.03559401,211.68,211.64,21.58653668]
[1756472233629,4.72433504,211.67,211.64,21.58653668]
[1756472234526,4.72433504,211.67,211.63,21.58653668]
[1756472234748,4.72433504,211.67,211.65,21.58653668]
[1756472234928,4.72433504,211.67,211.66,21.58653668]
[1756472235246,46.06433504,211.67,211.66,21.58653668]
[1756472235646,13.59559401,211.75,211.66,22.30653668]
[1756472235838,4.72210416,211.77,211.72,21.58653668]
[1756472236147,4.72210416,211.77,211.75,21.58653668]
[1756472236452,41.32,211.76,211.75,0.72]
[1756472237347,41.32,211.76,211.71,0.72]
[1756472237549,41.32,211.76,211.75,21.58653668]
[1756472237726,41.26,211.76,211.75,21.58653668]
[1756472237928,38.8019052,211.78,211.75,21.58653668]
[1756472238124,38.8019052,211.78,211.77,21.58653668]
[1756472238343,80.0419052,211.78,211.77,21.58653668]
[1756472238543,80.0419052,211.78,211.72,0.72]
[1756472238728,80.0419052,211.78,211.77,21.58653668]
[1756472239223,13.59559401,211.77,211.68,0.72]
[1756472239427,41.2,211.76,211.71,21.58653668]
[1756472239726,4.72255017,211.75,211.72,21.58653668]
[1756472239943,4.72255017,211.75,211.73,21.58653668]
[1756472240142,4.72210416,211.77,211.74,22.30653668]
[1756472240350,41.2,211.76,211.75,21.58653668]
[1756472241134,38.80189229,211.78,211.75,22.30653668]
[1756472241339,41.18,211.77,211.75,22.30653668]
[1756472241624,34.08,211.78,211.76,22.30653668]
[1756472241827,41.16,211.77,211.72,4.72321896]
[1756472242228,0.06,211.8,211.72,4.72321896]
[1756472242461,15.74,211.79,211.73,0.72]
[1756472242627,15.74,211.79,211.78,21.58653668]
[1756472242831,15.74,211.79,211.78,22.30653668]
[1756472243261,15.8,211.79,211.78,22.30653668]
[1756472243635,0.06,211.79,211.78,22.30653668]
[1756472245242,0.06,211.79,211.73,0.72]
[1756472245461,0.74,211.79,211.75,21.58653668]
[1756472245631,0.06,211.79,211.75,21.58653668]
[1756472245837,0.06,211.79,211.76,21.58653668]
[1756472246849,0.06,211.79,211.75,0.72]
[1756472247073,41.12,211.78,211.76,21.58653668]
[1756472247363,4.72210416,211.77,211.76,21.58653668]
[1756472247540,4.72210416,211.77,211.74,21.58653668]
[1756472247874,4.72210416,211.77,211.74,22.30653668]
[1756472248238,45.8418846,211.78,211.76,21.58653668]
[1756472248751,45.8418846,211.78,211.69,26.0]
[1756472248752,45.8418846,211.78,211.75,21.58653668]
[1756472248946,41.12,211.77,211.75,21.58653668]
[1756472249179,4.7218846,211.78,211.75,21.58653668]
[1756472249374,41.12,211.77,211.75,21.58653668]
[1756472249587,0.06,211.79,211.75,21.58653668]
[1756472249875,41.12,211.76,211.75,21.58653668]
[1756472250067,0.06,211.79,211.75,22.30653668]
[1756472250269,0.06,211.79,211.78,21.58653668]
[1756472250754,0.06,211.79,211.78,22.25653668]
[1756472251064,0.06,211.79,211.78,0.67]
[1756472251253,0.06,211.79,211.78,22.25653668]
[1756472253372,0.06,211.79,211.78,14.73880074]
[1756472253767,0.06,211.79,211.78,14.06880074]
[1756472253968,0.06,211.79,211.78,14.73880074]
[1756472254575,0.06,211.8,211.78,19.46068193]
[1756472254880,0.06,211.82,211.81,26.0]
[1756472255183,0.06,211.82,211.81,40.06880074]
[1756472255398,0.06,211.82,211.81,26.67]
[1756472255564,0.06,211.82,211.81,40.73880074]
[1756472255759,0.06,211.82,211.81,45.46001314]
[1756472260289,0.06,211.83,211.81,45.46001314]
[1756472260592,0.06,211.85,211.83,4.72076665]